bitfinex-derivatives/quotes_BTCF0:USTF0_20250709
["timestamp","ask_amount","ask_price","bid_price","bid_amount"]
[1752041865118,0.70360343,108810.0,108800.0,0.94564417]
[1752041865315,0.70360343,108810.0,108800.0,0.80859839]
[1752041865626,0.4525062,108810.0,108800.0,0.80859839]
[1752041872227,0.4525062,108810.0,108800.0,0.7834557]
[1752041872428,0.4525062,108810.0,108800.0,0.80860227]
[1752041872729,0.4525062,108810.0,108800.0,0.91849238]
[1752041874130,0.4525062,108810.0,108800.0,0.41629792]
[1752041874329,0.4525062,108810.0,108800.0,0.91849238]
[1752041875231,0.4525062,108810.0,108800.0,0.91849234]
[1752041875431,0.4525062,108810.0,108800.0,0.94849234]
[1752041878141,0.4525062,108810.0,108800.0,0.94848998]
[1752041879936,0.2624662,108810.0,108800.0,0.94848998]
[1752041880329,0.2624662,108810.0,108800.0,0.83859987]
[1752041880835,0.2624662,108810.0,108800.0,0.97564564]
[1752041881934,0.2624662,108810.0,108800.0,0.94849907]
[1752041883139,0.1993662,108810.0,108800.0,0.97302907]
[1752041883939,0.1837962,108810.0,108800.0,0.97302907]
[1752041884341,0.183781,108810.0,108800.0,1.11086957]
[1752041884543,0.183781,108810.0,108800.0,1.30074957]
[1752041885231,0.2769806,108820.0,108810.0,0.183781]
[1752041885434,0.2769806,108820.0,108810.0,0.95044217]
[1752041885633,0.2769806,108820.0,108810.0,0.97497217]
[1752041886048,0.1850947,108820.0,108810.0,0.97497217]
[1752041887139,0.2004247,108820.0,108810.0,0.97497217]
[1752041888839,0.2004247,108820.0,108810.0,0.96419679]
[1752041889040,0.2004247,108820.0,108810.0,0.95979851]
[1752041889545,0.2004247,108820.0,108810.0,0.959797]
[1752041889840,0.1850947,108820.0,108810.0,0.97507375]
[1752041892242,0.1850947,108820.0,108810.0,0.960708]
[1752041892546,0.1850947,108820.0,108810.0,0.97483788]
[1752041893445,0.1837747,108820.0,108810.0,0.97483788]
[1752041897448,0.5274993,108830.0,108820.0,0.1837643]
[1752041897647,0.5439493,108830.0,108820.0,0.84287453]
[1752041897948,0.5439493,108830.0,108820.0,0.85865453]
[1752041898248,0.3541093,108830.0,108820.0,0.85859635]
[1752041899348,0.3541093,108830.0,108820.0,0.27412933]
[1752041899554,0.3785393,108830.0,108820.0,0.77632379]
[1752041899747,0.63163653,108830.0,108820.0,0.27412933]
[1752041899948,0.5703393,108830.0,108820.0,0.27412933]
[1752041900148,0.63163653,108830.0,108820.0,0.52522656]
[1752041900447,0.82143653,108830.0,108820.0,0.63512577]
[1752041900751,0.82143653,108830.0,108820.0,0.52522656]
[1752041900950,0.82143653,108830.0,108820.0,0.52522595]
[1752041901149,0.81943653,108830.0,108820.0,0.52522595]
[1752041903251,0.5683393,108830.0,108820.0,0.52522595]
[1752041903450,0.81943653,108830.0,108820.0,0.52522595]
[1752041903750,0.81943653,108830.0,108820.0,0.7763107]
[1752041904451,0.81943653,108830.0,108820.0,0.27411624]
[1752041904751,0.5683393,108830.0,108820.0,0.27411624]
[1752041904951,0.81943653,108830.0,108820.0,0.7763107]
[1752041905250,0.5683393,108830.0,108820.0,0.7763107]
[1752041905451,0.81943653,108830.0,108820.0,0.7763107]
[1752041906650,0.81943653,108830.0,108820.0,0.77466388]
[1752041907350,0.5683393,108830.0,108820.0,0.77466388]
[1752041907549,0.81943653,108830.0,108820.0,0.52356665]
[1752041907746,0.81943653,108830.0,108820.0,0.60582728]
[1752041907946,0.81943653,108830.0,108820.0,0.85692451]
[1752041908253,0.81943653,108830.0,108820.0,0.77466388]
[1752041909455,0.81943653,108830.0,108820.0,0.77460369]
[1752041909958,0.3785393,108830.0,108820.0,0.77460369]
[1752041910248,0.49793,108830.0,108820.0,0.79854369]
[1752041910455,0.1850826,108830.0,108820.0,0.86134369]
[1752041910641,0.3748426,108830.0,108820.0,0.86134369]
[1752041910950,0.00132,108830.0,108820.0,1.3312429]
[1752041911451,0.1850673,108830.0,108820.0,1.3312429]
[1752041911653,0.1850673,108830.0,108820.0,0.9712429]
[1752041911854,0.1850673,108830.0,108820.0,0.9732429]
[1752041912151,0.1837473,108830.0,108820.0,0.9732429]
[1752041912347,0.1837473,108830.0,108820.0,1.2932429]
[1752041912656,0.5310757,108840.0,108830.0,0.1837473]
[1752041912856,0.5310757,108840.0,108830.0,0.60576441]
[1752041912857,0.5475257,108840.0,108830.0,0.60576441]
[1752041913149,0.2776157,108840.0,108830.0,0.88080164]
[1752041913345,0.2316803,108840.0,108830.0,0.91180164]
[1752041913546,0.2316803,108840.0,108830.0,0.94440164]
[1752041914155,0.2316803,108840.0,108830.0,0.86212669]
[1752041914354,0.2316803,108840.0,108830.0,0.9720259]
[1752041914567,0.2481303,108840.0,108830.0,0.9720259]
[1752041915259,0.2481303,108840.0,108830.0,0.86212669]
[1752041915457,0.2481303,108840.0,108830.0,0.9720259]
[1752041915654,0.2481303,108840.0,108830.0,0.72092867]
[1752041915960,0.2481303,108840.0,108830.0,0.69331346]
[1752041916559,0.2481303,108840.0,108830.0,0.94441069]
[1752041917562,0.002,108840.0,108830.0,0.86212669]
[1752041917763,0.002,108840.0,108830.0,0.9720259]
[1752041922259,0.002,108840.0,108830.0,0.86212669]
[1752041923858,0.002,108840.0,108830.0,0.86241717]
[1752041926461,0.002,108840.0,108830.0,1.30231638]
[1752041926661,0.002,108840.0,108830.0,1.30231636]
[1752041926969,0.002,108840.0,108830.0,1.28678636]
[1752041929572,0.002,108840.0,108830.0,1.28667765]
[1752041931173,0.1857305,108840.0,108830.0,0.45448319]
[1752041931367,0.1857305,108840.0,108830.0,0.97262765]
[1752041932272,0.002,108840.0,108830.0,0.97262765]
[1752041932474,0.002,108840.0,108830.0,0.97261737]
[1752041933874,0.1857305,108840.0,108830.0,0.97261737]
[1752041934174,0.1870505,108840.0,108830.0,0.97261737]
[1752041935171,0.1870505,108840.0,108830.0,0.95825517]
[1752041935368,0.1870505,108840.0,108830.0,0.97261745]
[1752041936071,0.00332,108840.0,108830.0,0.97261745]
[1752041937979,0.00332,108840.0,108830.0,0.95825517]
[1752041938277,0.00332,108840.0,108830.0,1.30261742]
[1752041938478,0.00332,108840.0,108830.0,1.28261742]
[1752041940078,0.00332,108840.0,108830.0,1.32261742]
[1752041940683,0.00332,108840.0,108830.0,1.32262024]
[1752041941272,0.2931563,108850.0,108840.0,0.1837306]
[1752041941476,0.2931563,108850.0,108840.0,0.99619433]
[1752041941668,0.2931563,108850.0,108840.0,1.02038433]
[1752041941870,0.2931563,108850.0,108840.0,1.13028354]
[1752041942067,0.0635,108850.0,108840.0,0.62808908]
[1752041942275,0.2472137,108850.0,108840.0,1.33606868]
[1752041942572,0.2472137,108850.0,108840.0,1.29592868]
[1752041942772,0.2645637,108850.0,108840.0,0.9487266]
[1752041943072,0.2665637,108850.0,108840.0,0.9646766]
[1752041944078,0.2665637,108850.0,108840.0,0.7749966]
[1752041944282,0.51766093,108850.0,108840.0,0.9646766]
[1752041945081,0.2665637,108850.0,108840.0,0.9646766]
[1752041945685,0.2665637,108850.0,108840.0,0.96465414]
[1752041946282,0.2897137,108850.0,108840.0,0.94870414]
[1752041946479,0.2897137,108850.0,108840.0,0.96465414]
[1752041947993,0.2665637,108850.0,108840.0,0.96465414]
[1752041948187,0.2665637,108850.0,108840.0,0.77497414]
[1752041948491,0.2897137,108850.0,108840.0,0.85722878]
[1752041949594,0.2897137,108850.0,108840.0,0.35503432]
[1752041949797,0.2897137,108850.0,108840.0,0.85722878]
[1752041952402,0.2897137,108850.0,108840.0,0.88487335]
[1752041952595,0.2897137,108850.0,108840.0,0.90226198]
[1752041952799,0.2665637,108850.0,108840.0,0.90226198]
[1752041953304,0.2897137,108850.0,108840.0,0.90226198]
[1752041954607,0.2665637,108850.0,108840.0,0.90226198]
[1752041957393,0.2665637,108850.0,108840.0,0.79236277]
[1752041959905,0.2665637,108850.0,108840.0,0.90226198]
[1752041960297,0.2665637,108850.0,108840.0,0.90035775]
[1752041962708,0.2665637,108850.0,108840.0,0.90014099]
[1752041963409,0.2665637,108850.0,108840.0,0.92336099]
[1752041963608,0.2665637,108850.0,108840.0,0.95546099]
[1752041964008,0.2665637,108850.0,108840.0,0.98706099]
[1752041964405,0.1877137,108850.0,108840.0,0.98706099]
[1752041964597,0.1857137,108850.0,108840.0,0.98706099]
[1752041964801,0.1857137,108850.0,108840.0,1.29706099]
[1752041965300,0.1857137,108850.0,108840.0,0.98706099]
[1752041965508,0.1857137,108850.0,108840.0,0.87704934]
[1752041966200,0.38329,108860.0,108850.0,0.1837137]
[1752041966411,0.39978,108860.0,108850.0,0.63203616]
[1752041967306,0.40178,108860.0,108850.0,0.63203616]
[1752041967512,0.40378,108860.0,108850.0,0.63203616]
[1752041968311,0.40178,108860.0,108850.0,0.63203616]
[1752041969119,0.40178,108860.0,108850.0,0.52220658]
[1752041969905,0.39978,108860.0,108850.0,0.52220658]
[1752041970110,0.39978,108860.0,108850.0,0.27110935]
[1752041970312,0.39978,108860.0,108850.0,0.52220658]
[1752041971018,0.39978,108860.0,108850.0,0.80490381]
[1752041971208,0.39978,108860.0,108850.0,0.83780381]
[1752041971405,0.39978,108860.0,108850.0,0.58670658]
[1752041973711,0.53911859,108870.0,108860.0,0.1836968]
[1752041973712,0.08969,108870.0,108860.0,0.1836968]
[1752041973916,0.2650699,108870.0,108860.0,0.88406827]
[1752041974209,0.2650699,108870.0,108860.0,0.38187381]
[1752041974418,0.54095713,108870.0,108860.0,0.38187381]
[1752041974714,0.54095713,108870.0,108860.0,0.85136827]
[1752041974915,0.2898599,108870.0,108860.0,0.85564676]
[1752041975111,0.2918599,108870.0,108860.0,0.85564676]
[1752041975513,0.2918599,108870.0,108860.0,0.91050549]
[1752041975716,0.2918599,108870.0,108860.0,0.85564676]
[1752041976014,0.2938599,108870.0,108860.0,0.91050529]
[1752041976214,0.54495713,108870.0,108860.0,0.9104962]
[1752041976912,0.2938599,108870.0,108860.0,0.91046356]
[1752041977212,0.2690699,108870.0,108860.0,0.82811069]
[1752041977419,0.2690699,108870.0,108860.0,0.85133069]
[1752041977716,0.2690699,108870.0,108860.0,0.88433069]
[1752041977919,0.2525799,108870.0,108860.0,0.91473069]
[1752041978116,0.2690699,108870.0,108860.0,0.91473069]
[1752041979114,0.2690699,108870.0,108860.0,0.91470789]
[1752041979914,0.2690699,108870.0,108860.0,0.90058443]
[1752041981718,0.2690699,108870.0,108860.0,0.87018443]
[1752041982018,0.2690699,108870.0,108860.0,0.88454455]
[1752041982515,0.2525799,108870.0,108860.0,0.84479455]
[1752041982721,0.2525799,108870.0,108860.0,0.84478729]
[1752041986320,0.2525799,108870.0,108860.0,0.92713243]
[1752041988722,0.2525799,108870.0,108860.0,0.92716377]
[1752041989421,0.2525799,108870.0,108860.0,0.92698279]
[1752041990121,0.2525799,108870.0,108860.0,0.42478833]
[1752041990316,0.2525799,108870.0,108860.0,0.92698279]
[1752041992123,0.2525799,108870.0,108860.0,0.87214108]
[1752041994027,0.2525799,108870.0,108860.0,0.36994662]
[1752041994322,0.2525799,108870.0,108860.0,0.90468154]
[1752042000535,0.2525799,108870.0,108860.0,0.90067214]
[1752042000728,0.2525799,108870.0,108860.0,0.90465902]
[1752042001129,0.2525799,108870.0,108860.0,0.82231388]
[1752042002028,0.2525799,108870.0,108860.0,0.82231363]
[1752042003138,0.2525799,108870.0,108860.0,0.93214321]
[1752042004934,0.2525799,108870.0,108860.0,0.42994875]
[1752042005135,0.2525799,108870.0,108860.0,0.93214321]
[1752042005431,0.2525799,108870.0,108860.0,0.82231363]
[1752042007737,0.2525799,108870.0,108860.0,0.82229721]
[1752042009440,0.2525799,108870.0,108860.0,0.9046773]
[1752042011841,0.2525799,108870.0,108860.0,0.6881805]
[1752042012140,0.69327713,108870.0,108860.0,0.2079162]
[1752042012340,0.69327713,108870.0,108860.0,0.45901343]
[1752042012940,0.4421799,108870.0,108860.0,0.45901343]
[1752042013137,0.69327713,108870.0,108860.0,0.45901343]
[1752042013539,0.69327713,108870.0,108860.0,0.45901464]
[1752042015348,0.4421799,108870.0,108860.0,0.45901464]
[1752042015547,0.69327713,108870.0,108860.0,0.45901464]
[1752042016247,0.69327713,108870.0,108860.0,0.40408448]
[1752042018153,0.69327713,108870.0,108860.0,0.45899652]
[1752042018351,0.69327713,108870.0,108860.0,0.15298725]
[1752042018654,0.69327713,108870.0,108860.0,0.40408448]
[1752042019650,0.69327713,108870.0,108860.0,0.15298725]
[1752042019851,0.69327713,108870.0,108860.0,0.40408448]
[1752042020250,0.69327713,108870.0,108860.0,0.45899361]
[1752042020853,0.69327713,108870.0,108860.0,0.20789638]
[1752042021051,0.69327713,108870.0,108860.0,0.15298725]
[1752042021253,0.69327713,108870.0,108860.0,0.40408448]
[1752042022153,0.4421799,108870.0,108860.0,0.40408448]
[1752042022349,0.69327713,108870.0,108860.0,0.40408448]
[1752042022853,0.69327713,108870.0,108860.0,0.15298725]
[1752042023051,0.69327713,108870.0,108860.0,0.45899153]
[1752042023252,0.69327713,108870.0,108860.0,0.40408448]
[1752042023451,0.69327713,108870.0,108860.0,0.45899109]
[1752042025452,0.69327713,108870.0,108860.0,0.20789386]
[1752042025854,0.69327713,108870.0,108860.0,0.12551377]
[1752042026152,0.94437436,108870.0,108860.0,0.12551377]
[1752042026457,0.94437436,108870.0,108860.0,0.16669705]
[1752042026955,0.94437436,108870.0,108860.0,0.15592713]
[1752042027955,0.94437436,108870.0,108860.0,0.15600026]
[1752042028155,0.4421799,108870.0,108860.0,0.15600026]
[1752042028347,0.94437436,108870.0,108860.0,0.10109365]
[1752042030756,0.94437436,108870.0,108860.0,0.10109433]
[1752042034558,0.94437436,108870.0,108860.0,0.15600094]
[1752042036362,0.94437436,108870.0,108860.0,0.13759444]
[1752042036564,0.94437436,108870.0,108860.0,0.15598472]
[1752042038367,0.94437436,108870.0,108860.0,0.15590114]
[1752042039261,0.94437436,108870.0,108860.0,0.15589885]
[1752042039561,0.94437436,108870.0,108860.0,0.15589877]
[1752042041959,0.94437436,108870.0,108860.0,0.11419827]
[1752042042164,0.1837136,108850.0,108840.0,0.16306872]
[1752042042363,0.87550806,108850.0,108840.0,0.11054105]
[1752042042562,0.87550806,108850.0,108840.0,0.09976872]
[1752042042563,0.65551083,108850.0,108840.0,0.09976872]
[1752042042861,0.68821083,108850.0,108840.0,0.09976872]
[1752042043259,0.68821083,108850.0,108840.0,0.01738863]
[1752042044468,0.93930806,108850.0,108840.0,0.01738863]
[1752042044965,0.68821083,108850.0,108840.0,0.01738863]
[1752042045265,0.68821083,108850.0,108840.0,0.01938863]
[1752042045866,0.68821083,108850.0,108840.0,0.02038863]
[1752042050169,0.4371136,108850.0,108840.0,0.02038863]
[1752042050469,0.68821083,108850.0,108840.0,0.02038863]
[1752042050871,0.4371136,108850.0,108840.0,0.02038863]
[1752042051062,0.68821083,108850.0,108840.0,0.02038863]
[1752042051868,0.4371136,108850.0,108840.0,0.02038863]
[1752042052065,0.1837136,108850.0,108840.0,0.70631359]
[1752042052262,0.3745536,108850.0,108840.0,0.76991359]
[1752042052468,0.1837136,108850.0,108840.0,0.78068586]
[1752042052673,0.3749936,108850.0,108840.0,0.78068586]
[1752042052874,0.1837136,108850.0,108840.0,0.78068586]
[1752042053173,0.1837136,108850.0,108840.0,0.86306595]
[1752042053469,0.3752336,108850.0,108840.0,0.86306595]
[1752042053666,0.3752336,108850.0,108840.0,0.8630653]
[1752042054173,0.3214943,108860.0,108850.0,0.1837137]
[1752042054470,0.3214943,108860.0,108850.0,0.65187695]
[1752042054670,0.5132143,108860.0,108850.0,0.65187695]
[1752042054876,0.5132143,108860.0,108850.0,0.65149974]
[1752042055374,0.4672865,108860.0,108850.0,0.65149974]
[1752042055677,0.3754332,108860.0,108850.0,0.65149974]
[1752042056672,0.1837132,108860.0,108850.0,0.65149974]
[1752042057076,0.3753932,108860.0,108850.0,0.67894923]
[1752042058165,0.3753932,108860.0,108850.0,0.67499417]
[1752042060374,0.3753932,108860.0,108850.0,0.75035024]
[1752042060974,0.3753932,108860.0,108850.0,0.49963022]
[1752042061178,0.3753932,108860.0,108850.0,0.75035024]
[1752042061364,0.3753932,108860.0,108850.0,0.38980064]
[1752042061564,0.3753132,108860.0,108850.0,0.64435004]
[1752042061774,0.3753132,108860.0,108850.0,0.64052066]
[1752042063682,0.3753132,108860.0,108850.0,0.3936279]
[1752042063972,0.3753132,108860.0,108850.0,0.64434792]
[1752042064178,0.3753132,108860.0,108850.0,0.64052066]
[1752042064674,0.3753132,108860.0,108850.0,0.72293915]
[1752042069482,0.3753132,108860.0,108850.0,0.47221913]
[1752042069684,0.3753132,108860.0,108850.0,0.72293915]
[1752042069880,0.3753132,108860.0,108850.0,0.72293764]
[1752042071275,0.3753132,108860.0,108850.0,0.64758157]
[1752042071679,0.3753132,108860.0,108850.0,0.39686155]
[1752042071878,0.3753132,108860.0,108850.0,0.64758157]
[1752042072386,0.3753132,108860.0,108850.0,0.39686155]
[1752042072587,0.3753132,108860.0,108850.0,0.64758157]
[1752042074582,0.4073132,108860.0,108850.0,0.67499266]
[1752042076090,0.4073132,108860.0,108850.0,0.64249266]
[1752042076290,0.4379132,108860.0,108850.0,0.64249266]
[1752042076789,0.68866926,108860.0,108850.0,0.6425287]
[1752042077488,0.68866926,108860.0,108850.0,0.39177264]
[1752042077689,0.68866926,108860.0,108850.0,0.6425287]
[1752042078603,0.4379132,108860.0,108850.0,0.39177149]
[1752042078794,0.68866926,108860.0,108850.0,0.64252755]
[1752042080493,0.4379132,108860.0,108850.0,0.64252755]
[1752042080691,0.68866926,108860.0,108850.0,0.64252755]
[1752042081291,0.71200926,108860.0,108850.0,0.43005536]
[1752042081490,0.71200926,108860.0,108850.0,0.61376896]
[1752042081789,0.96276532,108860.0,108850.0,0.1792993]
[1752042082192,0.71200926,108860.0,108850.0,0.43005536]
[1752042082394,0.96276532,108860.0,108850.0,0.1792993]
[1752042082798,0.71206282,108860.0,108850.0,0.1792993]
[1752042084485,0.71206282,108860.0,108850.0,0.3630129]
[1752042084989,0.4612532,108860.0,108850.0,0.38031028]
[1752042085294,0.4770632,108860.0,108850.0,0.38031028]
[1752042086094,0.4770632,108860.0,108850.0,0.39620028]
[1752042086296,0.4770632,108860.0,108850.0,0.21248668]
[1752042086704,0.4770632,108860.0,108850.0,0.39620038]
[1752042086896,0.4770632,108860.0,108850.0,0.38031038]
[1752042087198,0.4770632,108860.0,108850.0,0.2124876]
[1752042087389,0.72787282,108860.0,108850.0,0.1965976]
[1752042090304,0.72787282,108860.0,108850.0,0.2124876]
[1752042092605,0.72787282,108860.0,108850.0,0.3962013]
[1752042092801,0.4770632,108860.0,108850.0,0.28253021]
[1752042093105,0.72787282,108860.0,108850.0,0.3962214]
[1752042093907,0.72787282,108860.0,108850.0,0.08678812]
[1752042094099,0.72787282,108860.0,108850.0,0.16946754]
[1752042095708,0.72787282,108860.0,108850.0,0.16946803]
[1752042095905,0.4770632,108860.0,108850.0,0.16946803]
[1752042096101,0.72787282,108860.0,108850.0,0.16946803]
[1752042097309,0.72787282,108860.0,108850.0,0.17127219]
[1752042098612,0.72787282,108860.0,108850.0,0.17127337]
[1752042099111,0.4770632,108860.0,108850.0,0.17127337]
[1752042099411,0.72787282,108860.0,108850.0,0.17127337]
[1752042101210,0.72787282,108860.0,108850.0,0.14365985]
[1752042101611,0.72787282,108860.0,108850.0,0.14369829]
[1752042103015,0.72787282,108860.0,108850.0,0.14369345]
[1752042106819,0.97874614,108860.0,108850.0,0.14369345]
[1752042107318,0.97874614,108860.0,108850.0,0.1329218]
[1752042107519,0.97874614,108860.0,108850.0,0.14369389]
[1752042113324,0.97874614,108860.0,108850.0,0.22637339]
[1752042114524,0.97874614,108860.0,108850.0,0.14369397]
[1752042118031,0.97874614,108860.0,108850.0,0.12992754]
[1752042118225,0.97874614,108860.0,108850.0,0.08860278]
[1752042119232,0.97874614,108860.0,108850.0,0.14369397]
[1752042121142,0.97874614,108860.0,108850.0,0.14369482]
[1752042121431,0.97874614,108860.0,108850.0,0.22637424]
[1752042121639,0.97874614,108860.0,108850.0,0.14369482]
[1752042122328,1.22958761,108860.0,108850.0,0.22637424]
[1752042123237,0.97874614,108860.0,108850.0,0.18504367]
[1752042123633,0.97874614,108860.0,108850.0,0.1742715]
[1752042124541,1.22958761,108860.0,108850.0,0.11562527]
[1752042125737,1.22958761,108860.0,108850.0,0.12639772]
[1752042125940,1.22958761,108860.0,108850.0,0.11562527]
[1752042126330,1.22958761,108860.0,108850.0,0.15696262]
[1752042126533,1.22958761,108860.0,108850.0,0.156963]
[1752042126842,0.97874614,108860.0,108850.0,0.156963]
[1752042128041,1.22958761,108860.0,108850.0,0.16773546]
[1752042128236,1.22958761,108860.0,108850.0,0.10187181]
[1752042129146,0.1837137,108850.0,108840.0,0.13777061]
[1752042129443,0.78644664,108850.0,108840.0,0.13777061]
[1752042130441,0.78644664,108850.0,108840.0,0.13877061]
[1752042130843,0.78644664,108850.0,108840.0,0.14077061]
[1752042131142,0.1837305,108840.0,108830.0,0.08267942]
[1752042131342,1.11598964,108840.0,108830.0,0.09342726]
[1752042131644,0.1837474,108830.0,108820.0,0.14415367]
[1752042131837,0.72338034,108830.0,108820.0,0.12442797]
[1752042132038,0.75668034,108830.0,108820.0,0.12442797]
[1752042132237,0.78748034,108830.0,108820.0,0.12442797]
[1752042132438,0.78748034,108830.0,108820.0,0.0417743]
[1752042132838,0.78748034,108830.0,108820.0,0.031]
[1752042133037,0.78748034,108830.0,108820.0,0.033]
[1752042134344,0.78748034,108830.0,108820.0,0.04885]
[1752042134853,0.53677765,108830.0,108820.0,0.04885]
[1752042135849,0.60878634,108830.0,108820.0,0.04885]
[1752042136043,0.60878634,108830.0,108820.0,0.04985]
[1752042141050,0.60878634,108830.0,108820.0,0.05386197]
[1752042142452,0.60878634,108830.0,108820.0,0.03801197]
[1752042142647,0.60878634,108830.0,108820.0,0.00701197]
[1752042143949,0.60878634,108830.0,108820.0,0.02116431]
[1752042146043,0.35780609,108830.0,108820.0,0.02116431]
[1752042146244,0.60878634,108830.0,108820.0,0.02116431]
[1752042149753,0.60878634,108830.0,108820.0,0.0211031]
[1752042152554,0.60878634,108830.0,108820.0,0.02110208]
[1752042154853,0.85982307,108830.0,108820.0,0.02110208]
[1752042155452,0.85982307,108830.0,108820.0,0.00694779]
[1752042155650,0.35780609,108830.0,108820.0,0.02113259]
[1752042155854,0.79909458,108830.0,108820.0,0.03698259]
[1752042156149,0.71397458,108830.0,108820.0,0.09868259]
[1752042156551,0.73663458,108830.0,108820.0,0.09868259]
[1752042156954,0.73741458,108830.0,108820.0,0.09868259]
[1752042157254,0.71397458,108830.0,108820.0,0.09868259]
[1752042157454,0.73741458,108830.0,108820.0,0.09868259]
[1752042158552,0.73741458,108830.0,108820.0,0.10945803]
[1752042159753,0.73741458,108830.0,108820.0,0.10939459]
[1752042160356,0.73725458,108830.0,108820.0,0.10939459]
[1752042161159,0.73725458,108830.0,108820.0,0.16449705]
[1752042161847,0.69852458,108830.0,108820.0,0.14864705]
[1752042162052,0.50676458,108830.0,108820.0,0.16439705]
[1752042162252,0.73785458,108830.0,108820.0,0.16439705]
[1752042164663,0.54609458,108830.0,108820.0,0.16439705]
[1752042164857,0.54609458,108830.0,108820.0,0.34816135]
[1752042164858,0.73765458,108830.0,108820.0,0.34816135]
[1752042165164,0.72176458,108830.0,108820.0,0.16439705]
[1752042165359,0.25575609,108830.0,108820.0,0.68182351]
[1752042165559,0.69828458,108830.0,108820.0,0.45577502]
[1752042165760,0.44727609,108830.0,108820.0,0.70678351]
[1752042165962,0.69828458,108830.0,108820.0,0.70678351]
[1752042166166,0.71417458,108830.0,108820.0,0.45577502]
[1752042168072,0.71417458,108830.0,108820.0,0.24705072]
[1752042168468,0.73761458,108830.0,108820.0,0.24705072]
[1752042170472,0.98862307,108830.0,108820.0,0.24705072]
[1752042171284,0.98862307,108830.0,108820.0,0.23130072]
[1752042171285,0.94929307,108830.0,108820.0,0.23130072]
[1752042171469,1.01932307,108830.0,108820.0,0.16960072]
[1752042171668,1.05242307,108830.0,108820.0,0.16960072]
[1752042172170,1.05242307,108830.0,108820.0,0.18535072]
[1752042174572,1.05242307,108830.0,108820.0,0.16960072]
[1752042174774,1.01309307,108830.0,108820.0,0.16960072]
[1752042174974,1.03653307,108830.0,108820.0,0.18535072]
[1752042175774,1.03653307,108830.0,108820.0,0.18595546]
[1752042175975,0.53451609,108830.0,108820.0,0.18595546]
[1752042176273,1.05242307,108830.0,108820.0,0.18595546]
[1752042177875,0.55040609,108830.0,108820.0,0.18595546]
[1752042178067,1.05242307,108830.0,108820.0,0.18595546]
[1752042179366,0.86090307,108830.0,108820.0,0.18595546]
[1752042179571,0.80105458,108830.0,108820.0,0.10330179]
[1752042179773,0.80105458,108830.0,108820.0,0.16650179]
[1752042179974,0.55004609,108830.0,108820.0,0.16650179]
[1752042180379,0.80105458,108830.0,108820.0,0.16650179]
[1752042180778,0.80105458,108830.0,108820.0,0.1478279]
[1752042181076,0.80105458,108830.0,108820.0,0.16665439]
[1752042181278,0.55004609,108830.0,108820.0,0.16665439]
[1752042181481,0.80105458,108830.0,108820.0,0.16665439]
[1752042181876,0.80105458,108830.0,108820.0,0.1942056]
[1752042182274,0.55004609,108830.0,108820.0,0.19420505]
[1752042182473,0.80105458,108830.0,108820.0,0.19420505]
[1752042183784,0.55004609,108830.0,108820.0,0.19420505]
[1752042183978,0.80105458,108830.0,108820.0,0.19420505]
[1752042184179,0.80105458,108830.0,108820.0,0.16390505]
[1752042188686,0.80105458,108830.0,108820.0,0.14815505]
[1752042188883,0.80105458,108830.0,108820.0,0.16468505]
[1752042190487,0.55004609,108830.0,108820.0,0.16468505]
[1752042190691,0.80105458,108830.0,108820.0,0.16468505]
[1752042193694,0.80105458,108830.0,108820.0,0.10427769]
[1752042194286,1.05206307,108830.0,108820.0,0.10427769]
[1752042194687,1.05206307,108830.0,108820.0,0.08774769]
[1752042194892,1.05154307,108830.0,108820.0,0.08774769]
[1752042195793,0.54952609,108830.0,108820.0,0.08774769]
[1752042195989,1.05154307,108830.0,108820.0,0.08774769]
[1752042197895,1.05154307,108830.0,108820.0,0.08767359]
[1752042203593,1.05154307,108830.0,108820.0,0.1703265]
[1752042204895,1.05154307,108830.0,108820.0,0.08767283]
[1752042206498,1.05154307,108830.0,108820.0,0.08767961]
[1752042211201,1.05154307,108830.0,108820.0,0.10420961]
[1752042211805,0.80053458,108830.0,108820.0,0.28797391]
[1752042212104,0.80053458,108830.0,108820.0,0.28797381]
[1752042212305,0.80053458,108830.0,108820.0,0.10420765]
[1752042214509,0.80053458,108830.0,108820.0,0.08767765]
[1752042214715,1.05154307,108830.0,108820.0,0.08767765]
[1752042215110,1.05154307,108830.0,108820.0,0.08768568]
[1752042217907,1.05154307,108830.0,108820.0,0.07691043]
[1752042218111,1.05154307,108830.0,108820.0,0.08768593]
[1752042219111,1.05154307,108830.0,108820.0,0.07691043]
[1752042219909,1.05154307,108830.0,108820.0,0.1595641]
[1752042221217,1.05154307,108830.0,108820.0,0.07691043]
[1752042222222,1.05154307,108830.0,108820.0,0.1595641]
[1752042224016,1.05154307,108830.0,108820.0,0.15956442]
[1752042229321,1.05154307,108830.0,108820.0,0.17033991]
[1752042230222,1.05118307,108830.0,108820.0,0.17033991]
[1752042230423,0.80017458,108830.0,108820.0,0.17033991]
[1752042231122,0.80150458,108830.0,108820.0,0.17033991]
[1752042233726,0.80150458,108830.0,108820.0,0.18698991]
[1752042234126,0.80150458,108830.0,108820.0,0.10433624]
[1752042238228,0.80150458,108830.0,108820.0,0.10434309]
[1752042239229,1.05251307,108830.0,108820.0,0.10434309]
[1752042239929,1.05251307,108830.0,108820.0,0.18699676]
[1752042240234,0.80150458,108830.0,108820.0,0.18699676]
[1752042240730,0.80150458,108830.0,108820.0,0.18699665]
[1752042241126,0.55049609,108830.0,108820.0,0.18699665]
[1752042241425,0.80150458,108830.0,108820.0,0.18699665]
[1752042243331,0.80150458,108830.0,108820.0,0.03254667]
[1752042243921,1.05251307,108830.0,108820.0,0.03254667]
[1752042244741,1.05251307,108830.0,108820.0,0.07391573]
[1752042245135,0.80150458,108830.0,108820.0,0.07391573]
[1752042245839,0.80150458,108830.0,108820.0,0.06314024]
[1752042246036,0.80150458,108830.0,108820.0,0.07391554]
[1752042247639,0.80150458,108830.0,108820.0,0.03254648]
[1752042247834,0.80150458,108830.0,108820.0,0.07391409]
[1752042251140,0.80150458,108830.0,108820.0,0.08769279]
[1752042254545,0.80150458,108830.0,108820.0,0.08767286]
[1752042254744,0.80150458,108830.0,108820.0,0.17032653]
[1752042254945,1.05251307,108830.0,108820.0,0.17032653]
[1752042255838,0.80150458,108830.0,108820.0,0.17032653]
[1752042259947,0.80150458,108830.0,108820.0,0.18624653]
[1752042263146,0.80150458,108830.0,108820.0,0.17187946]
[1752042263346,0.80150458,108830.0,108820.0,0.18624651]
[1752042265849,0.72949589,108830.0,108820.0,0.18624651]
[1752042266148,0.72949589,108830.0,108820.0,0.18624631]
[1752042266551,0.72949589,108830.0,108820.0,0.1311]
[1752042267742,0.72949589,108830.0,108820.0,0.11518]
[1752042268235,0.72949589,108830.0,108820.0,0.17033912]
[1752042269053,0.98050438,108830.0,108820.0,0.17033912]
[1752042271756,0.98050438,108830.0,108820.0,0.15597207]
[1752042271956,0.98050438,108830.0,108820.0,0.17033887]
[1752042273856,0.98050438,108830.0,108820.0,0.11518001]
[1752042274160,0.72949589,108830.0,108820.0,0.17033985]
[1752042274657,0.72949589,108830.0,108820.0,0.17033938]
[1752042275055,0.98050438,108830.0,108820.0,0.17033938]
[1752042275457,1.23151287,108830.0,108820.0,0.08768571]